fUST/lending_fUST_20241112
["ID","MTS","AMOUNT","RATE_DAILY","PERIOD"]
[342024626,1731366677559,-278.141351,0.00030904,7]
[342024627,1731366677570,-600.0,0.00030933,2]
[342024628,1731366677580,-160.0,0.00030936,14]
[342024629,1731366677590,-500.0,0.00030959,7]
[342024630,1731366677599,-500.0,0.00030975,3]
[342024631,1731366677608,-500.0,0.00030975,3]
[342024632,1731366677618,-500.0,0.00030975,3]
[342024633,1731366677627,-4689.2305931,0.0003099,2]
[342024634,1731366677637,-1131.82189702,0.00030994,2]
[342024635,1731366677647,-1000.0,0.00031,2]
[342024636,1731366677656,-1000.0,0.00031,2]
[342024637,1731366677666,-1000.0,0.00031,2]
[342024638,1731366677675,-1000.0,0.00031,2]
[342024639,1731366677687,-1000.0,0.00031,2]
[342024640,1731366677698,-1046.3378,0.00031,2]
[342024641,1731366677708,-1503.75,0.00031,60]
[342024642,1731366677719,-10417.31857382,0.00031,120]
[342024643,1731366677728,-48461.54661805,0.00031,120]
[342024644,1731366677738,-616.08916722,0.00031,30]
[342024645,1731366677750,-375.65627365,0.00031,2]
[342024646,1731366677760,-1551.99999999,0.00031,120]
[342024647,1731366677769,-1000.0,0.00031,2]
[342024648,1731366677779,-1002.3809,0.00031,2]
[342024649,1731366677789,-2475.46505035,0.00031,2]
[342024650,1731366677798,-1000.0,0.00031,2]
[342024651,1731366677809,-206.94885109,0.00031,5]
[342024652,1731366677818,-2472.15,0.00031,2]
[342024653,1731366677828,-731.73,0.00031,31]
[342024654,1731366677837,-731.73,0.00031,31]
[342024655,1731366677847,-500.0,0.00031,34]
[342024656,1731366677863,-731.73,0.00031,31]
[342024657,1731366677878,-731.73,0.00031,31]
[342024658,1731366677888,-731.73,0.00031,31]
[342024659,1731366677897,-731.73,0.00031,31]
[342024660,1731366677907,-731.73,0.00031,31]
[342024661,1731366677917,-731.73,0.00031,31]
[342024662,1731366677927,-731.73,0.00031,31]
[342024663,1731366677937,-731.73,0.00031,31]
[342024664,1731366677948,-731.73,0.00031,31]
[342024665,1731366677970,-731.73,0.00031,31]
[342024666,1731366677987,-5001.13854729,0.00031015,29]
[342024667,1731366678000,-5000.0,0.00031015,30]
[342024668,1731366678009,-5000.0,0.00031015,28]
[342024669,1731366678019,-5000.0,0.00031015,33]
[342024670,1731366678029,-5000.0,0.00031015,27]
[342024671,1731366678039,-5000.0,0.00031026,28]
[342024672,1731366678049,-5000.0,0.00031026,30]
[342024673,1731366678060,-5000.0,0.00031026,32]
[342024674,1731366678070,-5000.0,0.00031026,28]
[342024675,1731366678081,-5000.0,0.00031026,33]
[342024676,1731366678092,-2545.4236558,0.00031084,4]
[342024677,1731366678102,-1269.34275052,0.00031094,7]
[342024678,1731366678112,-2280110.55752412,0.00031094,10]
[342024679,1731366678778,-2801.68876327,0.00031094,10]
[342024680,1731366678791,-16895.74915776,0.00031094,10]
[342024681,1731366678883,-500.0,0.00021917,2]
[342024682,1731366678893,-405.037448,0.00021917,2]
[342024683,1731366678904,-405.037448,0.00021917,2]
[342024684,1731366678914,-500.0,0.00022191,2]
[342024685,1731366678925,-424.5,0.00022465,2]
[342024686,1731366678935,-500.0,0.00023561,2]
[342024687,1731366678944,-500.0,0.00023835,2]
[342024688,1731366678954,-500.0,0.00024109,2]
[342024689,1731366678964,-500.0,0.00024383,2]
[342024690,1731366678973,-304.10292876,0.00024657,2]
[342024691,1731366678984,-500.0,0.00026575,2]
[342024692,1731366678994,-500.0,0.00026849,2]
[342024693,1731366679008,-3122.36,0.00027397,2]
[342024694,1731366679018,-1417.36285352,0.00027671,2]
[342024695,1731366679030,-327.05831972,0.00027671,2]
[342024696,1731366679041,-1377.93882676,0.00027671,2]
[342024697,1731366679051,-3122.36,0.00027945,2]
[342024698,1731366679061,-3122.47085397,0.00028219,2]
[342024699,1731366679071,-60439.48228927,0.00031094,10]
[342024700,1731366679241,-405.037448,0.00021917,2]
[342024701,1731366679254,-405.037448,0.00021917,2]
[342024702,1731366679264,-405.037448,0.00021917,2]
[342024703,1731366679274,-378.77092959,0.00021917,2]
[342024704,1731366679626,-1169.27083333,0.00020845,2]
[342024705,1731366679636,-3527.97452959,0.00021817,2]
[342024706,1731366679646,-26.26651841,0.00021917,2]
[342024707,1731366679656,-405.037448,0.00021917,2]
[342024708,1731366679666,-405.037448,0.00021917,2]
[342024709,1731366679676,-405.037448,0.00021917,2]
[342024710,1731366679685,-405.037448,0.00021917,2]
[342024711,1731366679697,-405.037448,0.00021917,2]
[342024712,1731366679706,-405.037448,0.00021917,2]
[342024713,1731366679716,-500.0,0.00021917,2]
[342024714,1731366679725,-405.037448,0.00021917,2]
[342024715,1731366679734,-405.037448,0.00021917,2]
[342024716,1731366679744,-396.17813467,0.00021917,2]
[342024717,1731366706076,153.874,0.0001463,2]
[342024718,1731366707175,153.908,0.0002083,2]
[342024719,1731366781057,8464.064314,0.00020711,2]
[342024720,1731366804432,214.815686,0.00020572,2]
[342024722,1731366860930,163.915095,0.00013973,2]
[342024723,1731366950953,337.617075,0.00020301,2]
[342024724,1731367095003,174.775794,0.00020016,2]
[342024736,1731367324521,420.32326266,0.00020833,2]
[342024737,1731367329642,1169.27083333,0.00020845,2]
[342024738,1731367339504,24900.0,0.00020225,2]
[342024739,1731367367619,153.928,0.0001492,2]
[342024740,1731367375827,152.29324599,0.00020845,2]
[342024741,1731367517672,154.166,0.0001463,2]
[342024742,1731367612158,163.915095,0.00013973,2]
[342024744,1731367642152,1169.27083333,0.00020845,2]
[342024745,1731367672151,225.07805,0.00020338,2]
[342024789,1731367804953,1000.0,0.00020845,2]
[342024790,1731367815414,311.33005703,0.00027,60]
[342024791,1731367817866,1000.0,0.00020845,2]
[342024834,1731367832551,-1169.27083333,0.00020845,2]
[342024835,1731367832562,-160.26922661,0.00020856,2]
[342024836,1731367832573,-300.0,0.00020953,2]
[342024837,1731367832583,-300.0,0.00020953,2]
[342024838,1731367832593,-2342.20008017,0.00020954,2]
[342024839,1731367832603,-165.30185571,0.00020954,2]
[342024840,1731367832613,-5321.52565951,0.00020955,2]
[342024841,1731367832623,-500.0,0.00020956,2]
[342024842,1731367832633,-500.0,0.00020956,2]
[342024843,1731367832643,-500.0,0.00020956,2]
[342024844,1731367832652,-500.0,0.00020956,2]
[342024845,1731367832661,-500.0,0.00020956,2]
[342024846,1731367832672,-500.0,0.00020956,2]
[342024847,1731367832682,-500.0,0.00020956,2]
[342024848,1731367832691,-500.0,0.00020956,2]
[342024849,1731367832701,-500.0,0.00020956,2]
[342024850,1731367832711,-500.0,0.00020956,2]
[342024851,1731367832721,-500.0,0.00020956,2]
[342024852,1731367832747,-500.0,0.00020956,2]
[342024853,1731367832756,-500.0,0.00020956,2]
[342024854,1731367832767,-502.94067962,0.00020956,2]
[342024855,1731367832777,-150.112233,0.00021,3]
[342024856,1731367832787,-3922.89062064,0.00021,2]
[342024857,1731367832796,-225.07805,0.00021022,2]
[342024858,1731367832806,-161.99325,0.000213,2]
[342024859,1731367832817,-1000.0,0.00021517,2]
[342024860,1731367832828,-4674.36415958,0.00021573,2]
[342024861,1731367832838,-394.63889196,0.00021573,2]
[342024862,1731367832849,-166.12,0.00021607,3]
[342024863,1731367832859,-498.4,0.00021607,3]
[342024864,1731367832870,-500.0,0.00021616,2]
[342024865,1731367832881,-500.0,0.00021616,2]
[342024866,1731367832892,-500.0,0.00021616,2]
[342024867,1731367832903,-500.0,0.00021616,2]
[342024868,1731367832915,-500.0,0.00021616,2]
[342024869,1731367832927,-500.0,0.00021616,2]
[342024870,1731367832939,-609.69962031,0.00021616,2]
[342024871,1731367832950,-177.25065243,0.00021617,2]
[342024872,1731367832963,-3910.72736895,0.00021617,2]
[342024909,1731367838541,-1000.0,0.00020953,2]
[342024910,1731367838551,-26311.17065,0.00021617,2]
[342025090,1731367840224,-13824.9669807,0.00021617,2]
[342025475,1731367843792,-4584.16297664,0.00021617,2]
[342025477,1731367843804,-10658.35823226,0.00021617,2]
[342025484,1731367843858,-21626.96641377,0.00021617,2]
[342025745,1731367846561,-670.52,0.00021617,2]
[342025805,1731367883374,1053.6565975,0.00027,60]
[342025806,1731367889128,156.404,0.0001463,2]
[342025807,1731367889643,156.378,0.000194,2]
[342025810,1731368086512,24900.0,0.00020599,2]
[342025811,1731368264257,1169.27083333,0.00020845,2]
[342025815,1731368335523,336.959918,0.00020515,2]
[342025818,1731368435569,200.0,0.00027,120]
[342025819,1731368459880,300.0,0.00020845,2]
[342025820,1731368550792,156.38,0.0001492,2]
[342025821,1731368551336,156.407,0.0002045,2]
[342025822,1731368577107,1169.27083333,0.00020845,2]
[342025823,1731368593876,13000.0,0.00020845,2]
[342025824,1731368612933,953.1677321,0.00020417,2]
[342025825,1731368751377,163.462925,0.00013973,2]
[342025826,1731368791697,24900.0,0.00020513,2]
[342025828,1731368888947,1169.27083333,0.00020845,2]
[342026463,1731369040397,-1000.0,0.00020845,2]
[342026528,1731369041000,257.505914,0.00020399,2]
[342026804,1731369043682,-169.27083333,0.00020845,2]
[342026806,1731369043692,-300.0,0.0002085,2]
[342026808,1731369043703,-182.68575,0.00020976,2]
[342026810,1731369043713,-214.17304775,0.000211,2]
[342026812,1731369043723,-1821.85790153,0.00021199,2]
[342026814,1731369043732,-336.959918,0.000212,2]
[342026816,1731369043741,-404.92806438,0.00021417,2]
[342026819,1731369043754,-595.07193562,0.00021417,2]
[342026822,1731369043763,-300.0,0.00021471,2]
[342026824,1731369043773,-300.0,0.00021472,2]
[342026826,1731369043782,-1220.80389744,0.00021473,2]
[342026828,1731369043791,-214.55,0.00021507,3]
[342026830,1731369043800,-643.67,0.00021507,3]
[342026832,1731369043810,-6842.32583974,0.00021515,2]
[342026834,1731369043821,-5616.83211775,0.00021515,2]
[342026836,1731369043833,-1345.64681491,0.00021515,2]
[342026838,1731369043842,-267.92802843,0.00021516,2]
[342026839,1731369043851,-500.0,0.00021516,2]
[342026840,1731369043860,-500.0,0.00021516,2]
[342026841,1731369043871,-500.0,0.00021516,2]
[342026842,1731369043881,-528.55640714,0.00021516,2]
[342026843,1731369043890,-160.64229731,0.00021516,2]
[342026844,1731369043899,-500.0,0.00021516,2]
[342026845,1731369043909,-500.0,0.00021516,2]
[342026846,1731369043919,-500.0,0.00021516,2]
[342026847,1731369043928,-500.0,0.00021516,2]
[342026848,1731369043938,-500.0,0.00021516,2]
[342026849,1731369043949,-500.0,0.00021516,2]
[342026850,1731369043959,-500.0,0.00021516,2]
[342026851,1731369043970,-500.0,0.00021516,2]
[342026852,1731369043980,-500.0,0.00021516,2]
[342026853,1731369043992,-500.0,0.00021516,2]
[342026854,1731369044003,-500.0,0.00021516,2]
[342026855,1731369044014,-500.0,0.00021516,2]
[342026856,1731369044024,-295.8862508,0.00021516,2]
[342026857,1731369044034,-500.0,0.00021516,2]
[342026858,1731369044043,-500.0,0.00021516,2]
[342026859,1731369044053,-500.0,0.00021516,2]
[342026860,1731369044063,-500.0,0.00021516,2]
[342026861,1731369044072,-500.0,0.00021516,2]
[342026863,1731369044082,-254.12968773,0.00021516,2]
[342026865,1731369044091,-500.0,0.00021516,2]
[342026867,1731369044101,-500.0,0.00021516,2]
[342026869,1731369044110,-500.0,0.00021516,2]
[342026870,1731369044119,-500.0,0.00021516,2]
[342026871,1731369044128,-366.45534846,0.00021516,2]
[342026970,1731369046582,-133.54465154,0.00021516,2]
[342026972,1731369046590,-182.11534846,0.00021516,2]
[342026974,1731369046601,-317.88465154,0.00021516,2]
[342026975,1731369046611,-148.07034846,0.00021516,2]
[342026991,1731369210886,156.41,0.0001492,2]
[342026992,1731369235288,177.993056,0.00020505,2]
[342026998,1731369507538,4436.9781679,0.00020405,2]
[342026999,1731369512227,1169.27083333,0.00020845,2]
[342027000,1731369514163,163.462925,0.00013973,2]
[342027003,1731369823236,1169.27083333,0.00020845,2]
[342027005,1731369840696,300.0,0.00020844,2]
[342027006,1731369844780,1150.0,0.00021,30]
[342027010,1731370002431,177.993056,0.0002038,2]
[342027013,1731370054756,598.35848464,0.00020845,2]
[342027018,1731370134784,1169.27083333,0.00020845,2]
[342027019,1731370140644,300.0,0.00020844,2]
[342027020,1731370142521,300.0,0.00020844,2]
[342027021,1731370216582,1944.5922,0.00027,60]
[342027179,1731370238614,-1169.27083333,0.00020845,2]
[342027180,1731370238624,-500.0,0.00020845,2]
[342027181,1731370238634,-500.0,0.00020845,2]
[342027182,1731370238643,-500.0,0.00020845,2]
[342027183,1731370238653,-187.9034866,0.00020845,2]
[342027184,1731370238662,-2015.86891337,0.00021,2]
[342027185,1731370238672,-300.0,0.00021288,2]
[342027186,1731370238682,-300.0,0.00021289,2]
[342027187,1731370238694,-1727.71381834,0.0002129,2]
[342027188,1731370238704,-2910.21112187,0.00021291,2]
[342027190,1731370238713,-1000.0,0.00021317,2]
[342027191,1731370238723,-1289.48311792,0.00021372,2]
[342027193,1731370238732,-429.1,0.00021407,3]
[342027194,1731370238742,-500.0,0.00021415,2]
[342027195,1731370238752,-500.0,0.00021415,2]
[342027196,1731370238761,-500.0,0.00021415,2]
[342027197,1731370238772,-500.0,0.00021415,2]
[342027198,1731370238781,-500.0,0.00021415,2]
[342027199,1731370238791,-500.0,0.00021415,2]
[342027200,1731370238801,-500.0,0.00021415,2]
[342027201,1731370238810,-500.0,0.00021415,2]
[342027202,1731370238821,-500.0,0.00021415,2]
[342027203,1731370238832,-403.54870857,0.00021415,2]
[342027204,1731370238849,-96.45129143,0.00021415,2]
[342027205,1731370238861,-500.0,0.00021415,2]
[342027206,1731370238871,-438.10373582,0.00021415,2]
[342027229,1731370243705,-61.89626418,0.00021415,2]
[342027230,1731370243719,-500.0,0.00021415,2]
[342027231,1731370243736,-500.0,0.00021415,2]
[342027232,1731370243750,-500.0,0.00021415,2]
[342027233,1731370243766,-500.0,0.00021415,2]
[342027234,1731370243778,-500.0,0.00021415,2]
[342027235,1731370243789,-500.0,0.00021415,2]
[342027236,1731370243802,-500.0,0.00021415,2]
[342027237,1731370243814,-491.59865577,0.00021415,2]
[342027238,1731370243828,-178.61868562,0.00021416,2]
[342027239,1731370243841,-199.54291676,0.00021416,2]
[342027240,1731370243859,-500.0,0.00021416,2]
[342027241,1731370243872,-500.0,0.00021416,2]
[342027242,1731370243883,-500.0,0.00021416,2]
[342027243,1731370243896,-500.0,0.00021416,2]
[342027244,1731370243906,-500.0,0.00021416,2]
[342027245,1731370243917,-500.0,0.00021416,2]
[342027246,1731370243934,-500.0,0.00021416,2]
[342027247,1731370243956,-500.0,0.00021416,2]
[342027248,1731370243968,-500.0,0.00021416,2]
[342027249,1731370243980,-500.0,0.00021416,2]
[342027250,1731370243992,-500.0,0.00021416,2]
[342027251,1731370244005,-500.0,0.00021416,2]
[342027252,1731370244018,-201.56481988,0.00021416,2]
[342027253,1731370244030,-500.0,0.00021416,2]
[342027254,1731370244043,-500.0,0.00021416,2]
[342027255,1731370244056,-500.0,0.00021416,2]
[342027256,1731370244068,-500.0,0.00021416,2]
[342027257,1731370244080,-295.71321059,0.00021416,2]
[342027258,1731370244092,-500.0,0.00021416,2]
[342027259,1731370244104,-500.0,0.00021416,2]
[342027260,1731370244117,-500.0,0.00021416,2]
[342027261,1731370244128,-500.0,0.00021416,2]
[342027262,1731370244139,-500.0,0.00021416,2]
[342027263,1731370244151,-500.0,0.00021416,2]
[342027264,1731370244163,-500.0,0.00021416,2]
[342027265,1731370244175,-500.0,0.00021416,2]
[342027266,1731370244187,-500.0,0.00021416,2]
[342027267,1731370244202,-500.0,0.00021416,2]
[342027268,1731370244214,-500.0,0.00021416,2]
[342027269,1731370244226,-500.0,0.00021416,2]
[342027270,1731370244236,-500.0,0.00021416,2]
[342027271,1731370244248,-500.0,0.00021416,2]
[342027272,1731370244258,-500.0,0.00021416,2]
[342027273,1731370244270,-500.0,0.00021416,2]
[342027274,1731370244281,-500.0,0.00021416,2]
[342027275,1731370244293,-346.22913189,0.00021416,2]
[342027276,1731370244304,-500.0,0.00021416,2]
[342027277,1731370244316,-500.0,0.00021416,2]
[342027278,1731370244327,-500.0,0.00021416,2]
[342027279,1731370244339,-500.0,0.00021416,2]
[342027280,1731370244350,-500.0,0.00021416,2]
[342027281,1731370244361,-500.0,0.00021416,2]
[342027282,1731370244372,-500.0,0.00021416,2]
[342027283,1731370244384,-500.0,0.00021416,2]
[342027284,1731370244396,-500.0,0.00021416,2]
[342027285,1731370244407,-500.0,0.00021416,2]
[342027286,1731370244418,-500.0,0.00021416,2]
[342027287,1731370244428,-500.0,0.00021416,2]
[342027288,1731370244439,-264.74630791,0.00021416,2]
[342027289,1731370244454,-502.25156983,0.00021416,2]
[342027290,1731370244465,-318.57348803,0.00021416,2]
[342027291,1731370244476,-1000.0,0.00021416,2]
[342027292,1731370244487,-11133.25438753,0.00021417,2]
[342027293,1731370244498,-145577.62398502,0.00021417,2]
[342027294,1731370244516,-2436.4850326,0.00021417,2]
[342027295,1731370244537,-676.4,0.00021417,2]
[342027313,1731370273925,9749.8630246,0.00020526,2]
[342027314,1731370276363,162.231948,0.00013973,2]
[342027315,1731370309073,1290.8152302,0.00020442,2]
[342027316,1731370372477,1000.0,0.0002,2]
[342027318,1731370441707,442.093799,0.00020442,2]
[342027321,1731370639686,9000.0,0.00027,60]
[342027323,1731370669926,178.650925,0.00020281,2]
[342027325,1731370756365,1169.27083333,0.00020845,2]
[342027326,1731370757732,350.94,0.00020845,2]
[342027327,1731370758268,180.92325,0.0002015,2]
[342027328,1731370831391,506.7523062,0.0002039,2]
[342027330,1731370956006,162.231948,0.00013973,2]
[342027332,1731371040734,702.818823,0.00020192,2]
[342027333,1731371072896,1169.27083333,0.00020845,2]
[342027334,1731371080643,479.75875525,0.00020777,2]
[342027339,1731371196083,319.83917016,0.00020807,2]
[342027346,1731371311215,213.22611344,0.00020842,2]
[342027354,1731371328824,5977.40962153,0.00025,120]
[342027365,1731371386185,1169.27083333,0.00020845,2]
[342027366,1731371426537,213.22611343,0.0002084,2]
[342027406,1731371432884,-1169.27083333,0.00020845,2]
[342027407,1731371432894,-702.818823,0.00020877,2]
[342027408,1731371432903,-7707.46474132,0.00020905,2]
[342027409,1731371432913,-300.0,0.0002094,2]
[342027410,1731371432922,-300.0,0.0002094,2]
[342027411,1731371432931,-178.52025,0.00020944,2]
[342027413,1731371432940,-1083.39883692,0.00020954,2]
[342027415,1731371432949,-160.0,0.00021075,3]
[342027416,1731371432958,-160.0,0.00021097,4]
[342027418,1731371432967,-160.0,0.0002112,5]
[342027419,1731371432976,-160.0,0.00021142,6]
[342027421,1731371432985,-160.0,0.00021164,7]
[342027422,1731371432995,-213.22611343,0.00021171,2]
[342027423,1731371433004,-160.0,0.00021186,8]
[342027424,1731371433013,-160.0,0.00021208,9]
[342027425,1731371433022,-245.96488321,0.00021208,5]
[342027426,1731371433031,-500.0,0.00021271,2]
[342027428,1731371433041,-500.0,0.00021271,2]
[342027429,1731371433050,-500.0,0.00021271,2]
[342027431,1731371433060,-500.0,0.00021271,2]
[342027433,1731371433073,-500.0,0.00021271,2]
[342027434,1731371433083,-500.0,0.00021271,2]
[342027435,1731371433092,-500.0,0.00021271,2]
[342027436,1731371433102,-500.0,0.00021271,2]
[342027437,1731371433111,-500.0,0.00021271,2]
[342027438,1731371433121,-500.0,0.00021271,2]
[342027439,1731371433130,-500.0,0.00021271,2]
[342027440,1731371433140,-500.0,0.00021271,2]
[342027441,1731371433149,-500.0,0.00021271,2]
[342027442,1731371433158,-486.88918617,0.00021271,2]
[342027443,1731371433167,-1000.0,0.00021273,2]
[342027444,1731371433177,-7707.46474133,0.00021335,2]
[342027445,1731371433186,-866.37,0.00021363,3]
[342027446,1731371433195,-433.18,0.00021363,3]
[342027447,1731371433205,-216.59,0.00021363,3]
[342027448,1731371433214,-649.8,0.00021363,3]
[342027449,1731371433223,-1041.18392147,0.00021371,2]
[342027450,1731371433232,-500.0,0.00021372,2]
[342027451,1731371433241,-500.0,0.00021372,2]
[342027452,1731371433251,-500.0,0.00021372,2]
[342027453,1731371433260,-244.61831332,0.00021372,2]
[342027454,1731371433270,-500.0,0.00021372,2]
[342027455,1731371433279,-578.58906454,0.00021372,2]
[342027456,1731371433290,-199.52369007,0.00021372,2]
[342027457,1731371433301,-500.0,0.00021372,2]
[342027458,1731371433311,-500.0,0.00021372,2]
[342027459,1731371433325,-500.0,0.00021372,2]
[342027460,1731371433335,-500.0,0.00021372,2]
[342027461,1731371433345,-500.0,0.00021372,2]
[342027462,1731371433355,-500.0,0.00021372,2]
[342027463,1731371433367,-500.0,0.00021372,2]
[342027464,1731371433378,-500.0,0.00021372,2]
[342027465,1731371433388,-500.0,0.00021372,2]
[342027466,1731371433399,-501.46411506,0.00021372,2]
[342027467,1731371433409,-500.0,0.00021372,2]
[342027468,1731371433419,-500.0,0.00021372,2]
[342027469,1731371433429,-500.0,0.00021372,2]
[342027470,1731371433439,-439.10438047,0.00021372,2]
[342027471,1731371433449,-500.0,0.00021372,2]
[342027472,1731371433459,-500.0,0.00021372,2]
[342027473,1731371433469,-500.0,0.00021372,2]
[342027474,1731371433479,-500.0,0.00021372,2]
[342027475,1731371433488,-500.0,0.00021372,2]
[342027476,1731371433498,-366.31145855,0.00021372,2]
[342027477,1731371433507,-500.0,0.00021372,2]
[342027478,1731371433517,-500.0,0.00021372,2]
[342027479,1731371433526,-500.0,0.00021372,2]
[342027480,1731371433536,-175.51064537,0.00021372,2]
[342027481,1731371433546,-500.0,0.00021372,2]
[342027482,1731371433556,-500.0,0.00021372,2]
[342027483,1731371433569,-198.6875626,0.00021372,2]
[342027484,1731371433579,-618.29919189,0.00021372,2]
[342027485,1731371433589,-500.0,0.00021372,2]
[342027486,1731371433600,-424.68605392,0.00021372,2]
[342027487,1731371433610,-500.0,0.00021372,2]
[342027488,1731371433620,-370.17251245,0.00021372,2]
[342027489,1731371433630,-500.0,0.00021372,2]
[342027490,1731371433640,-343.95368157,0.00021372,2]
[342027491,1731371433650,-203.49649499,0.00021372,2]
[342027492,1731371433660,-286.5276525,0.00021372,2]
[342027493,1731371433669,-500.0,0.00021372,2]
[342027494,1731371433679,-626.93264824,0.00021372,2]
[342027495,1731371433688,-502.02165473,0.00021373,2]
[342027496,1731371433699,-502.92068442,0.00021373,2]
[342027497,1731371433708,-500.0,0.00021373,2]
[342027498,1731371433718,-263.8020795,0.00021373,2]
[342027499,1731371433727,-500.0,0.00021373,2]
[342027500,1731371433737,-500.0,0.00021373,2]
[342027501,1731371433747,-407.09976648,0.00021373,2]
[342027502,1731371433757,-500.0,0.00021373,2]
[342027503,1731371433767,-500.0,0.00021373,2]
[342027504,1731371433776,-500.0,0.00021373,2]
[342027505,1731371433786,-500.0,0.00021373,2]
[342027506,1731371433795,-500.0,0.00021373,2]
[342027507,1731371433805,-500.0,0.00021373,2]
[342027508,1731371433814,-500.0,0.00021373,2]
[342027509,1731371433828,-400.10687291,0.00021373,2]
[342027510,1731371433839,-500.0,0.00021373,2]
[342027511,1731371433849,-500.0,0.00021373,2]
[342027512,1731371433859,-302.45071221,0.00021373,2]
[342027513,1731371433868,-259.17932551,0.00021373,2]
[342027514,1731371433878,-500.0,0.00021373,2]
[342027515,1731371433888,-500.0,0.00021373,2]
[342027516,1731371433898,-500.0,0.00021373,2]
[342027517,1731371433908,-496.65723435,0.00021373,2]
[342027518,1731371433917,-502.58953552,0.00021373,2]
[342027519,1731371433927,-500.0,0.00021373,2]
[342027520,1731371433937,-363.63856668,0.00021373,2]
[342027521,1731371433946,-160.54475915,0.00021373,2]
[342027522,1731371433956,-500.0,0.00021373,2]
[342027523,1731371433966,-500.0,0.00021373,2]
[342027524,1731371433976,-500.0,0.00021373,2]
[342027525,1731371433985,-500.0,0.00021373,2]
[342027526,1731371433995,-150.77337661,0.00021373,2]
[342027527,1731371434005,-294.59804084,0.00021373,2]
[342027528,1731371434015,-500.80412096,0.00021373,2]
[342027529,1731371434025,-500.0,0.00021373,2]
[342027530,1731371434035,-500.0,0.00021373,2]
[342027531,1731371434045,-38564.64024183,0.00021373,2]
[342027574,1731371438763,-500.4993911,0.00021373,2]
[342027576,1731371438772,-3119.86164063,0.00021373,2]
[342027788,1731371441169,-188315.49811754,0.00021373,2]
[342027789,1731371441180,-1078.39448581,0.00021373,2]
[342027790,1731371441190,-156.285909,0.00021373,2]
[342027791,1731371441199,-156.938223,0.00021373,2]
[342027792,1731371441209,-500.0,0.00021473,2]
[342027793,1731371441220,-500.0,0.00021473,2]
[342027794,1731371441229,-1000.0,0.00021473,2]
[342027795,1731371441239,-1078.39448578,0.00021484,2]
[342027797,1731371441248,-1000.0,0.00021507,2]
[342027799,1731371441258,-1092.10820376,0.00021515,2]
[342027801,1731371441268,-702.818823,0.00021562,2]
[342027803,1731371441277,-1078.39448578,0.00021595,2]
[342027804,1731371441288,-150.11224,0.000216,3]
[342027805,1731371441300,-1000.0,0.00021616,2]
[342027806,1731371441310,-1333.7966439,0.00021616,2]
[342027807,1731371441321,-153.06993764,0.00021616,2]
[342027808,1731371441330,-9453.240962,0.00021616,2]
[342027810,1731371441342,-151.0,0.00021616,2]
[342027812,1731371441351,-151.0,0.00021616,2]
[342027813,1731371441360,-157.90094,0.00021616,2]
[342027815,1731371441371,-157.90094,0.00021616,2]
[342027816,1731371441381,-151.0,0.00021616,2]
[342027818,1731371441390,-151.0,0.00021616,2]
[342027820,1731371441400,-151.0,0.00021616,2]
[342027822,1731371441409,-180.953525,0.00021616,2]
[342027823,1731371441420,-180.953525,0.00021616,2]
[342027824,1731371441429,-151.0,0.00021616,2]
[342027825,1731371441438,-151.0,0.00021616,2]